bitfinex-derivatives/quotes_BTCF0:USTF0_20250929
["timestamp","ask_amount","ask_price","bid_price","bid_amount"]
[1759145119784,0.0004,112080.0,112070.0,1.40303338]
[1759145120087,1.1742386,112100.0,112090.0,0.125306]
[1759145120088,1.1967886,112100.0,112090.0,0.125306]
[1759145120385,0.95963325,112100.0,112090.0,0.74438679]
[1759145120783,1.21791404,112100.0,112090.0,0.65521079]
[1759145120984,1.21711404,112100.0,112090.0,0.486106]
[1759145121185,1.28907856,112100.0,112090.0,0.74438679]
[1759145121588,1.28907856,112100.0,112090.0,0.74438669]
[1759145122086,1.03079777,112100.0,112090.0,0.74438669]
[1759145122289,1.28907856,112100.0,112090.0,0.74438669]
[1759145122474,1.03079777,112100.0,112090.0,0.74438669]
[1759145122680,1.30007856,112100.0,112090.0,0.74438669]
[1759145123378,1.29407856,112100.0,112090.0,0.74438669]
[1759145124887,1.29407856,112100.0,112090.0,0.65521079]
[1759145125675,1.29341856,112100.0,112090.0,0.65521079]
[1759145126289,1.56507935,112100.0,112090.0,0.02305]
[1759145126684,1.92587935,112100.0,112090.0,0.02305]
[1759145128285,1.92587935,112100.0,112090.0,0.03613]
[1759145128286,1.66730403,112100.0,112090.0,0.03613]
[1759145128481,1.65380403,112100.0,112090.0,0.125306]
[1759145128681,1.65380403,112100.0,112090.0,0.03613]
[1759145129585,1.66718403,112100.0,112090.0,0.03613]
[1759145129791,1.40919777,112100.0,112090.0,0.03613]
[1759145129990,1.66718403,112100.0,112090.0,0.03613]
[1759145130590,1.30638403,112100.0,112090.0,0.03613]
[1759145130890,1.04839777,112100.0,112090.0,0.03613]
[1759145131090,1.30638403,112100.0,112090.0,0.03613]
[1759145132687,1.30638403,112100.0,112090.0,0.02305]
[1759145136294,1.3384088,112100.0,112090.0,0.02305]
[1759145137498,1.30638403,112100.0,112090.0,0.02305]
[1759145139298,1.66718403,112100.0,112090.0,0.02305]
[1759145139696,0.1251058,112090.0,112080.0,0.02305]
[1759145139897,0.4034175,112090.0,112080.0,0.02305]
[1759145140290,0.96263124,112090.0,112080.0,0.29411626]
[1759145140599,0.94925124,112090.0,112080.0,0.29411626]
[1759145141199,0.95125124,112090.0,112080.0,0.29411626]
[1759145141500,0.13405124,112090.0,112080.0,0.29411626]
[1759145141698,0.94925124,112090.0,112080.0,0.65491626]
[1759145142004,0.13705124,112090.0,112080.0,0.65580626]
[1759145142188,0.95425124,112090.0,112080.0,0.65580626]
[1759145142391,0.95425124,112090.0,112080.0,0.74499006]
[1759145143302,0.95421124,112090.0,112080.0,0.74499006]
[1759145143604,0.13705124,112090.0,112080.0,0.74499006]
[1759145143799,0.95421124,112090.0,112080.0,0.74499006]
[1759145143998,0.95421124,112090.0,112080.0,0.65580626]
[1759145144199,0.95421124,112090.0,112080.0,0.39782]
[1759145144502,1.2121975,112090.0,112080.0,0.39782]
[1759145144702,1.2255775,112090.0,112080.0,0.39782]
[1759145145299,1.2255775,112090.0,112080.0,0.03702]
[1759145145598,1.2255775,112090.0,112080.0,0.02394]
[1759145147003,1.2255775,112090.0,112080.0,0.00089]
[1759145147204,2.01840227,112090.0,112080.0,0.00089]
[1759145148306,1.9863775,112090.0,112080.0,0.00089]
[1759145150305,1.1692175,112090.0,112080.0,0.00089]
[1759145150505,1.9863775,112090.0,112080.0,0.00089]
[1759145152308,1.1692175,112090.0,112080.0,0.00089]
[1759145152507,1.9863775,112090.0,112080.0,0.00089]
[1759145153409,1.1692175,112090.0,112080.0,0.00089]
[1759145153607,1.9863775,112090.0,112080.0,0.00089]
[1759145154707,1.1692175,112090.0,112080.0,0.00089]
[1759145154908,1.9863375,112090.0,112080.0,0.00089]
[1759145155708,1.1692175,112090.0,112080.0,0.00089]
[1759145155907,1.9863375,112090.0,112080.0,0.00089]
[1759145156712,1.1692175,112090.0,112080.0,0.00089]
[1759145156913,1.9863375,112090.0,112080.0,0.00089]
[1759145157208,1.1692175,112090.0,112080.0,0.00089]
[1759145157408,1.9863375,112090.0,112080.0,0.00089]
[1759145158713,1.1692175,112090.0,112080.0,0.00089]
[1759145158913,1.9863375,112090.0,112080.0,0.00089]
[1759145159402,0.91123124,112090.0,112080.0,0.00089]
[1759145159607,1.9863375,112090.0,112080.0,0.02318]
[1759145159802,1.9863375,112090.0,112080.0,0.00089]
[1759145160513,1.1692175,112090.0,112080.0,0.00089]
[1759145160713,1.9863375,112090.0,112080.0,0.00089]
[1759145162013,1.1692175,112090.0,112080.0,0.00089]
[1759145162208,1.9863375,112090.0,112080.0,0.02318]
[1759145162814,1.1692175,112090.0,112080.0,0.02318]
[1759145163013,1.9862975,112090.0,112080.0,0.02318]
[1759145163514,1.1692175,112090.0,112080.0,0.02318]
[1759145163713,1.6254975,112090.0,112080.0,0.38398]
[1759145164610,0.55043124,112090.0,112080.0,0.38398]
[1759145167316,0.13745064,112090.0,112080.0,1.14446946]
[1759145172516,0.04827544,112090.0,112080.0,1.14446946]
[1759145172721,0.02572544,112090.0,112080.0,1.45055715]
[1759145172917,0.0054,112090.0,112080.0,1.45055715]
[1759145173123,0.005,112090.0,112080.0,2.26755715]
[1759145173414,0.0054,112090.0,112080.0,2.26755715]
[1759145173622,0.005,112090.0,112080.0,2.26755715]
[1759145173920,0.0054,112090.0,112080.0,2.26755715]
[1759145174121,0.0004,112090.0,112080.0,2.26755715]
[1759145174423,0.0004,112090.0,112080.0,2.29255715]
[1759145175022,0.1106125,112110.0,112100.0,0.1246281]
[1759145175322,0.13179,112110.0,112100.0,1.10421436]
[1759145175530,0.13099,112110.0,112100.0,1.10421436]
[1759145175710,0.13139,112110.0,112100.0,1.10421436]
[1759145176716,0.13239,112110.0,112100.0,1.10421436]
[1759145177125,0.1120125,112110.0,112100.0,0.8462281]
[1759145177319,0.1110125,112110.0,112100.0,1.10421436]
[1759145177520,0.1140125,112110.0,112100.0,1.10421416]
[1759145177713,0.1274725,112110.0,112100.0,1.10421416]
[1759145177913,0.1274725,112110.0,112100.0,1.10510416]
[1759145178117,0.1140125,112110.0,112100.0,1.10510416]
[1759145180921,0.37199876,112110.0,112100.0,0.8471179]
[1759145181128,0.1140125,112110.0,112100.0,0.8471179]
[1759145181427,0.38545876,112110.0,112100.0,0.8471179]
[1759145183421,0.1140125,112110.0,112100.0,0.8471179]
[1759145184020,0.37199876,112110.0,112100.0,0.8471179]
[1759145185524,0.37199876,112110.0,112100.0,1.10510416]
[1759145185827,0.1140125,112110.0,112100.0,1.10510416]
[1759145186917,1.04344502,112110.0,112100.0,0.74415]
[1759145187122,1.04344502,112110.0,112100.0,0.38335]
[1759145187325,1.063788,112110.0,112100.0,0.00089]
[1759145187621,1.424588,112110.0,112100.0,0.00089]
[1759145190231,1.4246335,112110.0,112100.0,0.00089]
[1759145192535,1.5728335,112110.0,112100.0,0.00089]
[1759145192732,2.2412735,112110.0,112100.0,0.00089]
[1759145197245,1.4246335,112110.0,112100.0,0.00089]
[1759145197444,2.2412335,112110.0,112100.0,0.00089]
[1759145199247,1.4246335,112110.0,112100.0,0.00089]
[1759145199442,1.8411935,112110.0,112100.0,0.00089]
[1759145200244,1.0246335,112110.0,112100.0,0.00089]
[1759145200447,1.8411935,112110.0,112100.0,0.00089]
[1759145202250,1.0246335,112110.0,112100.0,0.00089]
[1759145202547,1.8411935,112110.0,112100.0,0.00089]
[1759145204047,1.8411535,112110.0,112100.0,0.00089]
[1759145205952,0.50861548,112110.0,112100.0,0.00089]
[1759145206151,1.8411135,112110.0,112100.0,0.00089]
[1759145206350,1.0246335,112110.0,112100.0,0.00089]
[1759145206551,1.8411135,112110.0,112100.0,0.00089]
[1759145208751,1.0246335,112110.0,112100.0,0.00089]
[1759145208951,1.8411135,112110.0,112100.0,0.00089]
[1759145212855,1.87313827,112110.0,112100.0,0.00089]
[1759145213350,0.124066,112090.0,112080.0,0.04810143]
[1759145213555,0.03489,112080.0,112070.0,0.51965683]
[1759145213755,0.571251,112080.0,112070.0,0.51965683]
[1759145214149,0.6604349,112080.0,112070.0,0.15885683]
[1759145214956,0.6514349,112080.0,112070.0,0.16585683]
[1759145215758,0.6514349,112080.0,112070.0,0.17385683]
[1759145215953,0.90944391,112080.0,112070.0,0.015]
[1759145216461,0.6514349,112080.0,112070.0,0.015]
[1759145216660,0.90944391,112080.0,112070.0,0.015]
[1759145216848,0.6514349,112080.0,112070.0,0.015]
[1759145217248,0.49621688,112080.0,112070.0,0.015]
[1759145217556,0.1240818,112070.0,112060.0,0.1107642]
[1759145217760,0.6604428,112070.0,112060.0,0.1107642]
[1759145218261,0.1240898,112060.0,112050.0,0.4857673]
[1759145218460,1.45658782,112060.0,112050.0,0.4725473]
[1759145219258,1.48608262,112060.0,112050.0,0.4725473]
[1759145219464,1.49708262,112060.0,112050.0,0.4725473]
[1759145220460,1.48608262,112060.0,112050.0,0.4725473]
[1759145220661,0.9700646,112060.0,112050.0,0.383346]
[1759145220866,1.84687541,112060.0,112050.0,0.000976]
[1759145221068,1.84887541,112060.0,112050.0,0.000976]
[1759145221366,1.84887541,112060.0,112050.0,0.022546]
[1759145221661,2.24887541,112060.0,112050.0,0.000976]
[1759145223057,1.43239541,112060.0,112050.0,0.000976]
[1759145223251,2.24887541,112060.0,112050.0,0.000976]
[1759145223666,1.43239541,112060.0,112050.0,0.000976]
[1759145223861,2.24891541,112060.0,112050.0,0.000976]
[1759145225366,1.43239541,112060.0,112050.0,0.000976]
[1759145225566,2.24895541,112060.0,112050.0,8.6e-05]
[1759145225767,1.43239541,112060.0,112050.0,8.6e-05]
[1759145225966,2.24895541,112060.0,112050.0,8.6e-05]
[1759145226266,1.43239541,112060.0,112050.0,8.6e-05]
[1759145226465,2.24895541,112060.0,112050.0,8.6e-05]
[1759145227570,2.22859939,112060.0,112050.0,8.6e-05]
[1759145228268,1.41203939,112060.0,112050.0,8.6e-05]
[1759145228468,2.22863939,112060.0,112050.0,8.6e-05]
[1759145230667,2.50696283,112060.0,112050.0,8.6e-05]
[1759145232672,2.24895382,112060.0,112050.0,8.6e-05]
[1759145232873,2.39715382,112060.0,112050.0,8.6e-05]
[1759145233171,1.0645358,112060.0,112050.0,8.6e-05]
[1759145233370,2.39715382,112060.0,112050.0,8.6e-05]
[1759145234172,1.58055382,112060.0,112050.0,8.6e-05]
[1759145234368,1.03235382,112060.0,112050.0,0.1242837]
[1759145234672,0.03285157,112060.0,112050.0,1.14309271]
[1759145234870,1.10746058,112060.0,112050.0,1.14309271]
[1759145235064,1.10706058,112060.0,112050.0,1.14309271]
[1759145235266,1.19666028,112060.0,112050.0,1.14309271]
[1759145235467,1.19666028,112060.0,112050.0,0.8850837]
[1759145235876,1.19666028,112060.0,112050.0,1.14309271]
[1759145236569,1.19666028,112060.0,112050.0,0.69308501]
[1759145236762,1.46735929,112060.0,112050.0,0.421766]
[1759145236964,1.48768737,112060.0,112050.0,0.421766]
[1759145238073,1.84848737,112060.0,112050.0,0.421766]
[1759145240474,1.84848737,112060.0,112050.0,0.5109737]
[1759145241175,1.84848737,112060.0,112050.0,0.421766]
[1759145241776,1.84848737,112060.0,112050.0,0.5109737]
[1759145243779,1.84848737,112060.0,112050.0,0.421766]
[1759145245180,1.84848737,112060.0,112050.0,8.6e-05]
[1759145247277,2.10649638,112060.0,112050.0,8.6e-05]
[1759145247477,2.53852115,112060.0,112050.0,8.6e-05]
[1759145247877,2.50649638,112060.0,112050.0,8.6e-05]
[1759145248077,2.53852115,112060.0,112050.0,8.6e-05]
[1759145248278,0.1249857,112040.0,112030.0,0.07049143]
[1759145248479,1.4779318,112040.0,112030.0,0.07049143]
[1759145248678,1.4779318,112040.0,112030.0,0.16011503]
[1759145249280,1.4780286,112040.0,112030.0,0.16011503]
[1759145249483,1.4780286,112040.0,112030.0,0.16711503]
[1759145249685,1.54945305,112040.0,112030.0,0.07789143]
[1759145249984,1.54945305,112040.0,112030.0,0.08189143]
[1759145250284,1.29171233,112040.0,112030.0,0.08189143]
[1759145250782,1.29171233,112040.0,112030.0,0.03379]
[1759145251184,1.65251233,112040.0,112030.0,0.01229]
[1759145251585,1.65251233,112040.0,112030.0,0.01189]
[1759145252190,1.65251233,112040.0,112030.0,0.01229]
[1759145252378,1.65251233,112040.0,112030.0,0.00129]
[1759145252579,1.66251233,112040.0,112030.0,0.00129]
[1759145253081,1.65751233,112040.0,112030.0,0.00129]
[1759145253483,1.65251233,112040.0,112030.0,0.00129]
[1759145253683,1.66051233,112040.0,112030.0,0.00129]
[1759145254588,1.66851233,112040.0,112030.0,0.00129]
[1759145255688,0.85191233,112040.0,112030.0,0.00129]
[1759145255888,1.66855233,112040.0,112030.0,0.00129]
[1759145256390,0.85191233,112040.0,112030.0,0.00129]
[1759145256589,1.66855233,112040.0,112030.0,0.00129]
[1759145257387,1.668607,112040.0,112030.0,0.00129]
[1759145257586,0.851967,112040.0,112030.0,0.00129]
[1759145257791,1.668607,112040.0,112030.0,0.00129]
[1759145258390,1.668607,112040.0,112030.0,0.0004]
[1759145261395,0.851967,112040.0,112030.0,0.0004]
[1759145261798,1.668607,112040.0,112030.0,0.0004]
[1759145263601,0.851967,112040.0,112030.0,0.0004]
[1759145263805,1.668607,112040.0,112030.0,0.0004]
[1759145264299,0.851967,112040.0,112030.0,0.0004]
[1759145264499,1.668607,112040.0,112030.0,0.0004]
[1759145264700,1.668607,112040.0,112030.0,0.0219]
[1759145266302,1.668607,112040.0,112030.0,0.0004]
[1759145267101,1.668607,112040.0,112030.0,0.0896223]
[1759145268003,1.668607,112040.0,112030.0,0.0004]
[1759145270495,1.668607,112040.0,112030.0,0.02277]
[1759145271300,1.668607,112040.0,112030.0,0.0004]
[1759145272101,1.668607,112040.0,112030.0,0.0896211]
[1759145274506,1.668607,112040.0,112030.0,0.0004]
[1759145278311,1.668607,112040.0,112030.0,0.0896211]
[1759145279012,1.668607,112040.0,112030.0,0.0004]
[1759145280818,1.668607,112040.0,112030.0,0.0896211]
[1759145281111,0.85201023,112040.0,112030.0,0.1119911]
[1759145281310,1.66857023,112040.0,112030.0,0.1119911]
[1759145281615,1.66897023,112040.0,112030.0,0.1119911]
[1759145281807,1.66897023,112040.0,112030.0,0.0004]
[1759145282309,0.85241023,112040.0,112030.0,0.02277]
[1759145282610,0.85241023,112040.0,112030.0,0.7833884]
[1759145282611,0.49180723,112040.0,112030.0,0.7833884]
[1759145282812,1.30872723,112040.0,112030.0,0.7833884]
[1759145283014,0.94752723,112040.0,112030.0,1.1441884]
[1759145283206,0.13100723,112040.0,112030.0,1.1441884]
[1759145283404,0.13140723,112040.0,112030.0,1.19228983]
[1759145283609,0.05958278,112040.0,112030.0,1.19228983]
[1759145283812,0.8560768,112040.0,112030.0,1.1441884]
[1759145285219,0.8560768,112040.0,112030.0,1.19234667]
[1759145290919,0.0164968,112040.0,112030.0,1.19230755]
[1759145291226,0.0160968,112040.0,112030.0,1.19230755]
[1759145291517,0.0164968,112040.0,112030.0,1.19230755]
[1759145292225,0.0164968,112040.0,112030.0,2.00870755]
[1759145295525,0.0164968,112040.0,112030.0,1.19230755]
[1759145295927,0.0164968,112040.0,112030.0,2.00858755]
[1759145297328,0.0164968,112040.0,112030.0,1.19230755]
[1759145297529,0.0164968,112040.0,112030.0,2.00854755]
[1759145300530,0.0164968,112040.0,112030.0,2.00850755]
[1759145301927,0.10571,112040.0,112030.0,1.19230755]
[1759145302128,0.10571,112040.0,112030.0,2.00846755]
[1759145302624,0.0164968,112040.0,112030.0,2.00846755]
[1759145302934,0.0160968,112040.0,112030.0,1.9692582]
[1759145303135,0.0160968,112040.0,112030.0,1.9603484]
[1759145303336,0.0164968,112040.0,112030.0,1.9603484]
[1759145303738,0.0164968,112040.0,112030.0,1.96942191]
[1759145304128,0.0164968,112040.0,112030.0,1.9603484]
[1759145307638,0.0164968,112040.0,112030.0,2.00845424]
[1759145308039,0.0164968,112040.0,112030.0,2.01734304]
[1759145308341,0.0164968,112040.0,112030.0,1.9692372]
[1759145309028,0.10571,112040.0,112030.0,0.8859111]
[1759145309232,0.10571,112040.0,112030.0,1.9602684]
[1759145311138,0.10571,112040.0,112030.0,1.1441884]
[1759145311439,0.10571,112040.0,112030.0,1.9611184]
[1759145312239,0.10571,112040.0,112030.0,1.20905751]
[1759145312539,0.10571,112040.0,112030.0,2.02505751]
[1759145312935,0.10571,112040.0,112030.0,1.96097039]
[1759145314243,0.10571,112040.0,112030.0,2.02505751]
[1759145315545,0.10571,112040.0,112030.0,1.96097039]
[1759145315937,0.10571,112040.0,112030.0,1.14497039]
[1759145316137,0.10571,112040.0,112030.0,1.96093039]
[1759145316338,0.10571,112040.0,112030.0,2.02501751]
[1759145317345,0.10571,112040.0,112030.0,1.20905751]
[1759145317547,0.10571,112040.0,112030.0,2.02501751]
[1759145318841,0.10571,112040.0,112030.0,2.38581751]
[1759145319552,0.10571,112040.0,112030.0,1.98581751]
[1759145321853,0.0164968,112040.0,112030.0,2.2439868]
[1759145322152,0.0164968,112040.0,112030.0,1.98581751]
[1759145322450,0.1057109,112040.0,112030.0,1.72764822]
[1759145322650,0.1057109,112040.0,112030.0,1.98581751]
[1759145327653,0.0164968,112040.0,112030.0,2.2439868]
[1759145328554,0.0160968,112040.0,112030.0,2.2439868]
[1759145328755,0.0164968,112040.0,112030.0,2.2439868]
[1759145329648,0.0164968,112040.0,112030.0,1.4280268]
[1759145329848,0.0164968,112040.0,112030.0,2.2437868]
[1759145336662,0.00198915,112040.0,112030.0,2.2437868]
[1759145338365,0.28138844,112040.0,112030.0,0.91168822]
[1759145338568,0.37060254,112040.0,112030.0,1.98545751]
[1759145339367,0.37060254,112040.0,112030.0,1.98505751]
[1759145339574,0.37060254,112040.0,112030.0,1.98545751]
[1759145341277,0.37060254,112040.0,112030.0,0.91168822]
[1759145341579,0.37060254,112040.0,112030.0,1.98545751]
[1759145341977,0.37060254,112040.0,112030.0,1.16985751]
[1759145342178,0.37060254,112040.0,112030.0,1.98541751]
[1759145342571,0.77060254,112040.0,112030.0,0.91168822]
[1759145342776,0.77060254,112040.0,112030.0,1.98541751]
[1759145342977,1.02877183,112040.0,112030.0,1.98541751]
[1759145343372,1.02877183,112040.0,112030.0,1.16985751]
[1759145343573,0.77060254,112040.0,112030.0,1.16985751]
[1759145343975,0.77060254,112040.0,112030.0,1.98537751]
[1759145345782,0.51243325,112040.0,112030.0,1.98537751]
[1759145345983,0.51243325,112040.0,112030.0,1.72720822]
[1759145345984,0.77060254,112040.0,112030.0,1.72720822]
[1759145346179,0.77060254,112040.0,112030.0,1.98537751]
[1759145347182,0.51243325,112040.0,112030.0,1.98537751]
[1759145347481,0.77060254,112040.0,112030.0,1.98537751]
[1759145347680,0.51243325,112040.0,112030.0,1.98537751]
[1759145348277,0.53297234,112040.0,112030.0,1.92129039]
[1759145348472,0.53297234,112040.0,112030.0,1.6631211]
[1759145348677,0.53297234,112040.0,112030.0,1.92129039]
[1759145349182,0.79114163,112040.0,112030.0,1.92129039]
[1759145350380,0.51174234,112040.0,112030.0,2.17945968]
[1759145350583,0.40198915,112040.0,112030.0,2.17945968]
[1759145350783,0.00198915,112040.0,112030.0,2.17945968]
[1759145350984,0.00158915,112040.0,112030.0,2.17945968]
[1759145351383,0.00198915,112040.0,112030.0,2.17945968]
[1759145351570,0.62877183,112040.0,112030.0,0.8476021]
[1759145351775,0.64930922,112040.0,112030.0,0.89580121]
[1759145351971,0.64930922,112040.0,112030.0,0.89540121]
[1759145352183,0.64930922,112040.0,112030.0,0.89580121]
[1759145352590,0.64930922,112040.0,112030.0,0.89540121]
[1759145353090,0.64930922,112040.0,112030.0,0.89580121]
[1759145355281,1.89795878,112040.0,112030.0,0.04948911]
[1759145355476,2.51692807,112040.0,112030.0,0.04908911]
[1759145355677,1.89795878,112040.0,112030.0,0.02341]
[1759145356690,2.15612807,112040.0,112030.0,0.00129]
[1759145356880,1.89795878,112040.0,112030.0,0.00129]
[1759145357981,1.08255878,112040.0,112030.0,0.00129]
[1759145358194,1.89795878,112040.0,112030.0,0.00129]
[1759145361294,1.08255878,112040.0,112030.0,0.00129]
[1759145361692,1.89795878,112040.0,112030.0,0.00129]
[1759145362189,1.89795878,112040.0,112030.0,0.02403]
[1759145362490,1.08255878,112040.0,112030.0,0.02403]
[1759145362692,1.08255878,112040.0,112030.0,0.113252]
[1759145362887,1.89795878,112040.0,112030.0,0.113252]
[1759145365397,1.08255878,112040.0,112030.0,0.113252]
[1759145365695,1.89795878,112040.0,112030.0,0.113252]
[1759145367295,2.04615878,112040.0,112030.0,0.113252]
[1759145367495,1.89795878,112040.0,112030.0,0.113252]
[1759145367696,1.08255878,112040.0,112030.0,0.113252]
[1759145367898,1.89795878,112040.0,112030.0,0.113252]
[1759145368289,1.89791878,112040.0,112030.0,0.113252]
[1759145369398,1.08255878,112040.0,112030.0,0.113252]
[1759145369698,1.89791878,112040.0,112030.0,0.113252]
[1759145370692,1.89791878,112040.0,112030.0,0.02403]
[1759145370898,2.25871878,112040.0,112030.0,0.02403]
[1759145371501,1.44335878,112040.0,112030.0,0.113252]
[1759145371694,2.25871878,112040.0,112030.0,0.113252]
[1759145372196,2.00066985,112040.0,112030.0,0.113252]
[1759145376497,1.63986985,112040.0,112030.0,0.113252]
[1759145379499,1.23986985,112040.0,112030.0,0.113252]
[1759145386103,0.42450985,112040.0,112030.0,0.113252]
[1759145386309,0.41163985,112040.0,112030.0,0.487362]
[1759145386609,1.22687985,112040.0,112030.0,0.487362]
[1759145387014,1.23957985,112040.0,112030.0,0.487362]
[1759145391108,1.23957985,112040.0,112030.0,0.53556111]
[1759145392014,0.42433985,112040.0,112030.0,0.53556111]
[1759145392215,1.23953985,112040.0,112030.0,0.53556111]
[1759145395414,0.9812502,112040.0,112030.0,0.53556111]
[1759145395614,1.23953985,112040.0,112030.0,0.53556111]
[1759145397619,1.23953985,112040.0,112030.0,0.487362]
[1759145400018,1.23941985,112040.0,112030.0,0.487362]
[1759145403726,0.42433985,112040.0,112030.0,0.487362]
[1759145403920,1.23933985,112040.0,112030.0,0.487362]
[1759145404827,0.41163985,112040.0,112030.0,0.487362]
[1759145405027,1.22663985,112040.0,112030.0,0.487362]
[1759145405426,0.9683502,112040.0,112030.0,0.487362]
[1759145405626,1.22663985,112040.0,112030.0,0.487362]
[1759145406126,1.23950985,112040.0,112030.0,0.487362]
[1759145407627,1.23950985,112040.0,112030.0,0.53556111]
[1759145407822,0.9811802,112040.0,112030.0,0.53556111]
[1759145408024,0.42450985,112040.0,112030.0,0.53556111]
[1759145408222,1.23946985,112040.0,112030.0,0.53556111]
[1759145408724,1.38766985,112040.0,112030.0,0.53556111]
[1759145408931,1.23946985,112040.0,112030.0,0.53556111]
[1759145411024,0.42450985,112040.0,112030.0,0.53556111]
[1759145411230,1.23942985,112040.0,112030.0,0.53556111]
[1759145412131,0.1533497,112040.0,112030.0,0.93556111]
[1759145412326,0.9682697,112040.0,112030.0,0.93556111]
[1759145412527,1.22615935,112040.0,112030.0,0.93556111]
[1759145412722,1.22655935,112040.0,112030.0,0.93556111]
[1759145412927,1.22615935,112040.0,112030.0,0.93556111]
[1759145413232,1.22655935,112040.0,112030.0,0.93556111]
[1759145418334,0.02252654,112040.0,112030.0,1.55465076]
[1759145418524,0.02252654,112040.0,112030.0,1.50645165]
[1759145418525,0.00158915,112040.0,112030.0,1.50645165]
[1759145418828,0.00198915,112040.0,112030.0,1.57053877]
[1759145419030,0.00158915,112040.0,112030.0,1.57053877]
[1759145419231,0.00198915,112040.0,112030.0,2.38533877]
[1759145419627,0.00158915,112040.0,112030.0,2.38533877]
[1759145419840,0.35350016,112060.0,112050.0,0.1239058]
[1759145420030,0.37402385,112060.0,112050.0,0.74299545]
[1759145422633,0.38285365,112060.0,112050.0,0.74299545]
[1759145423124,0.38285365,112060.0,112050.0,0.74388545]
[1759145423329,0.6411433,112060.0,112050.0,0.74388545]
[1759145423831,0.6411433,112060.0,112050.0,0.4855958]
[1759145424025,0.6411433,112060.0,112050.0,0.74388545]
[1759145424233,0.6411433,112060.0,112050.0,0.4855958]
[1759145426039,0.62061961,112060.0,112050.0,0.4855958]
[1759145426341,0.36232996,112060.0,112050.0,0.4855958]
[1759145426638,0.62061961,112060.0,112050.0,0.4855958]
[1759145429344,0.63332961,112060.0,112050.0,0.4855958]
[1759145431646,0.62061961,112060.0,112050.0,0.4855958]
[1759145434349,0.87861838,112060.0,112050.0,0.4855958]
[1759145434654,0.70817838,112060.0,112050.0,0.4855958]
[1759145434856,1.52261838,112060.0,112050.0,0.4855958]
[1759145435543,1.52261838,112060.0,112050.0,0.39639]
[1759145437658,1.54314895,112060.0,112050.0,0.39639]
[1759145437959,2.57480316,112060.0,112050.0,0.00089]
[1759145439462,2.17480316,112060.0,112050.0,0.00089]
[1759145439957,2.57480316,112060.0,112050.0,0.00089]
[1759145440257,0.14491267,112040.0,112030.0,0.4711317]
[1759145440447,1.49605166,112040.0,112030.0,0.4711317]
[1759145440649,1.49605166,112040.0,112030.0,0.4847217]
[1759145440861,1.47553279,112040.0,112030.0,0.4851217]
[1759145441259,1.49624855,112040.0,112030.0,0.4851217]
[1759145441761,1.49624855,112040.0,112030.0,0.4961217]
[1759145442158,0.68192855,112040.0,112030.0,0.4851217]
[1759145442358,1.49624855,112040.0,112030.0,0.4851217]
[1759145442557,1.49624855,112040.0,112030.0,0.4911217]
[1759145442758,1.47553279,112040.0,112030.0,0.4911217]
[1759145443156,0.04233057,112040.0,112030.0,0.4911217]
[1759145443362,1.37293899,112040.0,112030.0,0.4911217]
[1759145443755,0.64783279,112040.0,112030.0,0.4911217]
[1759145443957,1.46215279,112040.0,112030.0,0.4911217]
[1759145444459,0.64783279,112040.0,112030.0,0.4911217]
[1759145444662,1.46215279,112040.0,112030.0,0.4911217]
[1759145445763,1.37293899,112040.0,112030.0,0.4911217]
[1759145445964,0.55861899,112040.0,112030.0,0.4911217]
[1759145446164,1.37293899,112040.0,112030.0,0.4911217]
[1759145447561,1.46215279,112040.0,112030.0,0.4911217]
[1759145447762,1.44162222,112040.0,112030.0,0.4911217]
[1759145456967,0.62730222,112040.0,112030.0,0.4911217]
[1759145457175,1.44150222,112040.0,112030.0,0.4911217]
[1759145459869,1.45449222,112040.0,112030.0,0.4911217]
[1759145460578,1.45449222,112040.0,112030.0,0.38831]
[1759145463884,1.45449222,112040.0,112030.0,0.3672]
[1759145464185,1.47504531,112040.0,112030.0,0.41535041]
[1759145464681,1.47504531,112040.0,112030.0,0.43787041]
[1759145465178,1.47504531,112040.0,112030.0,0.41535041]
[1759145465383,2.13318952,112040.0,112030.0,0.0064]
[1759145465684,2.13318952,112040.0,112030.0,0.006]
[1759145465885,1.87504531,112040.0,112030.0,0.0064]
[1759145466183,1.87504531,112040.0,112030.0,0.05455041]
[1759145466888,2.13318952,112040.0,112030.0,0.05455041]
[1759145467087,2.13318952,112040.0,112030.0,0.006]
[1759145467278,2.13318952,112040.0,112030.0,0.05455041]
[1759145467581,2.13306952,112040.0,112030.0,0.05415041]
[1759145467776,2.13306952,112040.0,112030.0,0.05455041]
[1759145468482,1.31898952,112040.0,112030.0,0.05455041]
[1759145468686,2.13306952,112040.0,112030.0,0.05455041]
[1759145468887,1.31898952,112040.0,112030.0,0.05455041]
[1759145469185,1.87492531,112040.0,112030.0,0.0064]
[1759145469383,1.31898952,112040.0,112030.0,0.0064]
[1759145469587,2.13306952,112040.0,112030.0,0.0064]
[1759145470281,1.67978952,112040.0,112030.0,0.0064]
[1759145470475,2.51457161,112040.0,112030.0,0.0064]
[1759145471088,2.2564274,112040.0,112030.0,0.0064]
[1759145471282,1.4423474,112040.0,112030.0,0.0064]
[1759145471581,2.2563874,112040.0,112030.0,0.0064]
[1759145471789,2.51453161,112040.0,112030.0,0.0064]
[1759145472790,2.2563874,112040.0,112030.0,0.0064]
[1759145473689,2.51453161,112040.0,112030.0,0.0064]
[1759145474187,2.51435232,112040.0,112030.0,0.0064]
[1759145477190,2.25620811,112040.0,112030.0,0.02769]
[1759145477387,0.06287589,112040.0,112030.0,0.74896591]
[1759145477591,0.04235309,112040.0,112030.0,1.19711632]
[1759145477787,0.3004973,112040.0,112030.0,1.19711632]
[1759145477993,1.1144973,112040.0,112030.0,1.19711632]
[1759145478192,1.1148973,112040.0,112030.0,1.19711632]
[1759145478586,1.09394421,112040.0,112030.0,1.19711632]
[1759145478785,1.09434421,112040.0,112030.0,1.19711632]
[1759145478982,1.18355791,112040.0,112030.0,1.10789462]
[1759145479189,1.20412587,112040.0,112030.0,1.10789462]
[1759145479395,1.47565008,112040.0,112030.0,0.43664041]
[1759145479594,1.47565008,112040.0,112030.0,0.41535041]
[1759145480492,1.47565008,112040.0,112030.0,0.52692211]
[1759145481592,1.47565008,112040.0,112030.0,0.50457211]
[1759145482299,1.47565008,112040.0,112030.0,0.05455041]
[1759145482590,1.47565008,112040.0,112030.0,0.05415041]
[1759145482797,1.38635638,112040.0,112030.0,0.16612211]
[1759145483700,0.57243638,112040.0,112030.0,0.16612211]
[1759145483896,1.38635638,112040.0,112030.0,0.17904211]
[1759145484097,0.57243638,112040.0,112030.0,0.17904211]
[1759145484306,0.55905638,112040.0,112030.0,1.19798632]
[1759145484593,1.11443217,112040.0,112030.0,1.19798632]
[1759145484806,1.11483217,112040.0,112030.0,1.19798632]
[1759145485097,0.30091217,112040.0,112030.0,1.19798632]
[1759145485298,1.20404587,112040.0,112030.0,1.19798632]